fUST/lending_fUST_20260215
["ID","MTS","AMOUNT","RATE_DAILY","PERIOD"]
[405360948,1771086642060,-385.79067439,0.00028,30]
[405360951,1771086642070,-154.0,0.00028,14]
[405360953,1771086642079,-1005.27087081,0.00028229,2]
[405360955,1771086642088,-178.04855032,0.00028363,2]
[405360957,1771086642098,-1246.4201091,0.00028493,5]
[405360958,1771086642107,-1156.51221044,0.00028493,5]
[405360961,1771086642117,-1422.41442893,0.00028493,5]
[405360963,1771086642126,-891.94767329,0.0002868,7]
[405360965,1771086642135,-217.78846376,0.00028713,2]
[405360967,1771086642144,-386.544918,0.00028735,2]
[405360968,1771086642154,-399.2859419,0.00028767,2]
[405360971,1771086642167,-455.49741144,0.00028767,2]
[405360973,1771086642177,-819.89534059,0.00028767,2]
[405360975,1771086642187,-370.48428848,0.00028767,2]
[405360977,1771086642196,-500.0,0.00028767,2]
[405360979,1771086642205,-7136.55,0.0002895,10]
[405360981,1771086642215,-8563.86,0.0002896,10]
[405360983,1771086642224,-10276.63,0.0002897,10]
[405360985,1771086642233,-12472.3253658,0.0002898,2]
[405360987,1771086642243,-100000.0,0.0002899,2]
[405360989,1771086642252,-4637.41629173,0.0002908,2]
[405360991,1771086642261,-4157.4417886,0.00029097,2]
[405360993,1771086642270,-46993.9598941,0.00029107,2]
[405360995,1771086642282,-1457.59171661,0.00029146,2]
[405360997,1771086642292,-285.0,0.00029185,2]
[405360999,1771086642302,-482.72,0.00029201,2]
[405361001,1771086642312,-12127.6261364,0.00029203,2]
[405361003,1771086642321,-360.676452,0.00029203,2]
[405361005,1771086642330,-16265.32456933,0.00029301,2]
[405361007,1771086642340,-4157.4417886,0.00029381,2]
[405361009,1771086642349,-62361.626829,0.00029391,2]
[405361011,1771086642357,-792464.49717266,0.00029401,2]
[405361022,1771086642447,-32432.57462237,0.00029401,2]
[405361024,1771086642461,-5262.44901223,0.00029401,2]
[405361031,1771086642518,-250.0,0.00024908,2]
[405361033,1771086642527,-5167.90200325,0.00029401,2]
[405361035,1771086642539,-32555.47281215,0.00029401,2]
[405361037,1771086642549,-280.54960365,0.00029401,2]
[405361416,1771086646534,-6494.38301719,0.00029401,2]
[405361417,1771086646546,-943.52446648,0.00029401,2]
[405361567,1771086967103,168.30973852,0.00013273,2]
[405361568,1771086974236,500.0,0.00013273,2]
[405361569,1771087025118,500.0,0.00013273,2]
[405361575,1771087212336,500.0,0.00013273,2]
[405361576,1771087213864,500.0,0.00013699,2]
[405361577,1771087213917,267.2856157,0.00014247,2]
[405361578,1771087227871,500.0,0.00013699,2]
[405361579,1771087235796,500.0,0.00013699,2]
[405361580,1771087287165,500.0,0.00013273,2]
[405361581,1771087287232,911.34022662,0.00014368,2]
[405361582,1771087287350,1000.0,0.00013821,2]
[405361588,1771087625428,500.0,0.00013273,2]
[405361606,1771087831547,-720.0,0.00024188,2]
[405361608,1771087831556,-150.0,0.00024188,2]
[405361610,1771087831565,-150.0,0.00024721,2]
[405361612,1771087831574,-183.73394199,0.00024999,2]
[405361614,1771087831585,-49.09847427,0.00024999,2]
[405361616,1771087831594,-300.0,0.00024999,2]
[405361618,1771087831603,-838.75080178,0.00025,2]
[405361655,1771087837710,-370.81903333,0.00025,2]
[405361665,1771087839905,-10798.19016489,0.00025,2]
[405361666,1771087839915,-177.0,0.00026721,2]
[405361667,1771087839924,-154.0,0.00027,7]
[405361668,1771087839934,-884.5677581,0.0002701,2]
[405361669,1771087839943,-420.0,0.00027082,2]
[405361670,1771087839952,-150.0,0.00027188,2]
[405361671,1771087839961,-743.00766454,0.00027451,2]
[405361672,1771087839971,-500.0,0.00027677,2]
[405361673,1771087839981,-33.23441247,0.00028493,5]
[405361699,1771087845690,-136.10991565,0.00028493,5]
[405361700,1771087845699,-217.78846376,0.00028713,2]
[405361701,1771087845708,-204.0,0.00028721,2]
[405361702,1771087845718,-666.87171926,0.00028901,2]
[405361703,1771087845729,-1185.54972312,0.00028901,2]
[405361704,1771087845739,-718.71469541,0.00028932,2]
[405361706,1771087845749,-1277.71501407,0.00028932,2]
[405361707,1771087845759,-1994.43327978,0.00028932,2]
[405361708,1771087845768,-2275.20957015,0.00028932,2]
[405361709,1771087845777,-6672.70816866,0.0002899,2]
[405361710,1771088069952,961559.10434288,0.00018,2]
[405361711,1771088069985,1319147.79907229,0.00018,2]
[405361712,1771088070015,10000.0,0.00018,2]
[405361713,1771088070047,1000.0,0.00018,2]
[405361714,1771088294880,339.37755271,0.00013273,2]
[405361715,1771088404426,228.0,0.00029808,120]
[405361724,1771088460811,151.0,1.16e-06,2]
[405361725,1771088472300,500.0,0.00013699,2]
[405361726,1771088472351,1000.0,0.00014247,2]
[405361727,1771088472407,1500.0,0.00014795,2]
[405361728,1771088472463,2000.0,0.00015342,2]
[405361729,1771088472537,897.46109804,0.0001589,2]
[405361732,1771088591148,500.0,0.00013273,2]
[405361733,1771088591298,1186.92518623,0.00014916,2]
[405361734,1771088591329,1500.0,0.00014368,2]
[405361735,1771088591359,425.23616302,0.00013821,2]
[405361736,1771088591384,574.76383698,0.00013821,2]
[405361737,1771088655170,425.23616302,0.00014247,2]
[405361738,1771088655198,574.76383698,0.00014247,2]
[405361739,1771088655233,500.0,0.00013699,2]
[405361740,1771088655275,1500.0,0.00014795,2]
[405361741,1771088655335,1103.40906354,0.0001589,2]
[405361742,1771088655597,2000.0,0.00015342,2]
[405361743,1771088663127,330.70449328,0.00014221,2]
[405361744,1771088663188,300.0,0.00013673,2]
[405361746,1771088704272,169.0,0.00029853,120]
[405361747,1771088704303,1000.0,0.00013821,2]
[405361748,1771088704357,1500.0,0.00014368,2]
[405361749,1771088704474,500.0,0.00013273,2]
[405361750,1771088704514,691.1226062,0.00014916,2]
[405361751,1771088704540,303.51159369,0.00014916,2]
[405361752,1771088735177,167.0,0.00029856,120]
[405361753,1771088778626,316.37699428,0.00013699,2]
[405361754,1771088781685,380.11141203,0.00013699,2]
[405361755,1771088781708,260.23219782,0.00013699,2]
[405361756,1771088830207,401.70488794,0.00013699,2]
[405361757,1771088830405,500.0,0.00013273,2]
[405361758,1771088830441,541.5064157,0.00013821,2]
[405361759,1771088839593,151.0,1.16e-06,2]
[405361763,1771089007679,345.39040608,0.00013699,2]
[405361785,1771089031674,-1385.50233932,0.0001682,2]
[405361787,1771089031685,-2503.90361354,0.0001682,2]
[405361796,1771089037816,-1078.06174088,0.0001682,2]
[405361797,1771089037826,-300.0,0.00016989,2]
[405361799,1771089037836,-300.0,0.00016989,2]
[405361800,1771089037845,-300.0,0.00016989,2]
[405361802,1771089037854,-300.0,0.00016989,2]
[405361804,1771089037863,-1200.0,0.00016989,2]
[405361806,1771089037872,-500.0,0.00016989,2]
[405361808,1771089037881,-500.0,0.00016989,2]
[405361810,1771089037892,-516.12947213,0.00016989,2]
[405361812,1771089037901,-310.57747111,0.00016989,2]
[405361814,1771089037913,-189.42252889,0.00016989,2]
[405361816,1771089037922,-500.0,0.00016989,2]
[405361818,1771089037931,-500.0,0.00016989,2]
[405361820,1771089037940,-500.0,0.00016989,2]
[405361822,1771089037949,-500.0,0.00016989,2]
[405361824,1771089037959,-500.0,0.00016989,2]
[405361826,1771089037968,-500.0,0.00016989,2]
[405361828,1771089037977,-500.0,0.00016989,2]
[405361830,1771089037986,-500.0,0.00016989,2]
[405361832,1771089037995,-500.0,0.00016989,2]
[405361834,1771089038004,-500.0,0.00016989,2]
[405361836,1771089038014,-500.0,0.00016989,2]
[405361838,1771089038023,-500.0,0.00016989,2]
[405361840,1771089038032,-500.0,0.00016989,2]
[405361842,1771089038042,-500.0,0.00016989,2]
[405361843,1771089038052,-500.0,0.00016989,2]
[405361845,1771089038061,-500.0,0.00016989,2]
[405361846,1771089038070,-500.0,0.00016989,2]
[405361847,1771089038079,-500.0,0.00016989,2]
[405361848,1771089038089,-319.80929045,0.00016989,2]
[405361849,1771089038098,-231.6867116,0.00016989,2]
[405361850,1771089038107,-500.0,0.00016989,2]
[405361851,1771089038117,-500.0,0.00016989,2]
[405361852,1771089038130,-500.0,0.00016989,2]
[405361853,1771089038140,-500.0,0.00016989,2]
[405361854,1771089038149,-500.0,0.00016989,2]
[405361855,1771089038158,-500.0,0.00016989,2]
[405361856,1771089038169,-500.0,0.00016989,2]
[405361857,1771089038178,-500.0,0.00016989,2]
[405361858,1771089038188,-500.0,0.00016989,2]
[405361859,1771089038198,-500.0,0.00016989,2]
[405361860,1771089038209,-500.0,0.00016989,2]
[405361861,1771089038219,-500.0,0.00016989,2]
[405361862,1771089038228,-500.0,0.00016989,2]
[405361863,1771089038237,-500.0,0.00016989,2]
[405361864,1771089038247,-500.0,0.00016989,2]
[405361865,1771089038256,-500.0,0.00016989,2]
[405361866,1771089038266,-500.0,0.00016989,2]
[405361867,1771089038277,-500.0,0.00016989,2]
[405361868,1771089038287,-500.0,0.00016989,2]
[405361869,1771089038297,-500.0,0.00016989,2]
[405361870,1771089038307,-500.0,0.00016989,2]
[405361871,1771089038316,-600.0,0.00016989,2]
[405361872,1771089038325,-196.44655646,0.00016989,2]
[405361873,1771089038334,-500.0,0.00016989,2]
[405361874,1771089038344,-500.0,0.00016989,2]
[405361875,1771089038354,-500.0,0.00016989,2]
[405361876,1771089038363,-500.0,0.00016989,2]
[405361877,1771089038376,-500.0,0.00016989,2]
[405361878,1771089038386,-500.0,0.00016989,2]
[405361879,1771089038395,-500.0,0.00016989,2]
[405361880,1771089038405,-500.0,0.00016989,2]
[405361881,1771089038414,-500.0,0.00016989,2]
[405361882,1771089038423,-500.0,0.00016989,2]
[405361883,1771089038433,-500.0,0.00016989,2]
[405361884,1771089038443,-500.0,0.00016989,2]
[405361885,1771089038453,-500.0,0.00016989,2]
[405361886,1771089038462,-500.0,0.00016989,2]
[405361887,1771089038472,-190.96753925,0.00016989,2]
[405361888,1771089038481,-500.0,0.00016989,2]
[405361889,1771089038491,-500.0,0.00016989,2]
[405361890,1771089038501,-500.0,0.00016989,2]
[405361891,1771089038511,-500.0,0.00016989,2]
[405361892,1771089038521,-500.0,0.00016989,2]
[405361893,1771089038531,-500.0,0.00016989,2]
[405361894,1771089038541,-500.0,0.00016989,2]
[405361895,1771089038551,-500.0,0.00016989,2]
[405361896,1771089038561,-500.0,0.00016989,2]
[405361897,1771089038571,-500.0,0.00016989,2]
[405361898,1771089038581,-500.0,0.00016989,2]
[405361899,1771089038592,-500.0,0.00016989,2]
[405361900,1771089038601,-500.0,0.00016989,2]
[405361901,1771089038611,-500.0,0.00016989,2]
[405361902,1771089038622,-500.0,0.00016989,2]
[405361903,1771089038632,-500.0,0.00016989,2]
[405361904,1771089038642,-500.0,0.00016989,2]
[405361905,1771089038652,-500.0,0.00016989,2]
[405361906,1771089038662,-500.0,0.00016989,2]
[405361907,1771089038672,-500.0,0.00016989,2]
[405361908,1771089038682,-500.0,0.00016989,2]
[405361909,1771089038691,-500.0,0.00016989,2]
[405361910,1771089038701,-500.0,0.00016989,2]
[405361911,1771089038711,-500.0,0.00016989,2]
[405361912,1771089038720,-500.0,0.00016989,2]
[405361913,1771089038730,-500.0,0.00016989,2]
[405361914,1771089038740,-500.0,0.00016989,2]
[405361915,1771089038749,-500.0,0.00016989,2]
[405361916,1771089038759,-500.0,0.00016989,2]
[405361917,1771089038769,-500.0,0.00016989,2]
[405361918,1771089038778,-500.0,0.00016989,2]
[405361919,1771089038788,-500.0,0.00016989,2]
[405361920,1771089038798,-8053.64437526,0.0001699,2]
[405361921,1771089038808,-150.0,0.00016992,2]
[405361922,1771089038817,-208.7940589,0.00016995,2]
[405361923,1771089038827,-500.0,0.00017545,2]
[405361924,1771089038836,-300.0,0.00017545,2]
[405361925,1771089038845,-515.92331516,0.00017819,2]
[405361926,1771089038855,-834.24,0.0001799,3]
[405361927,1771089038864,-500.0,0.00017997,2]
[405361928,1771089038873,-552.93471018,0.00017997,2]
[405361929,1771089038883,-583.86880523,0.00017997,2]
[405361930,1771089038892,-500.0,0.00017997,2]
[405361931,1771089038902,-500.0,0.00017997,2]
[405361932,1771089038911,-515.56121285,0.00017997,2]
[405361933,1771089038921,-79914.41037769,0.00018,2]
[405361934,1771089038935,-687.33916467,0.00018,2]
[405361935,1771089039223,168.0,0.00029868,120]
[405362017,1771089045165,-469.01208889,0.00016989,2]
[405362021,1771089045797,-91.54004783,0.00016989,2]
[405362022,1771089045807,-5274.93390385,0.00018,2]
[405362023,1771089045818,-36338.3353963,0.00018,2]
[405362037,1771089500219,500.0,0.00013699,2]
[405362039,1771089551033,500.0,0.00013273,2]
[405362040,1771089551084,798.96782818,0.00013821,2]
[405362041,1771089668162,500.0,0.00013699,2]
[405362042,1771089793671,300.0,0.00013673,2]
[405362043,1771089854974,500.0,0.00013699,2]
[405362049,1771090145541,500.0,0.00013273,2]
[405362050,1771090145587,1000.0,0.00013821,2]
[405362051,1771090147869,500.0,0.00013273,2]
[405362052,1771090147920,1000.0,0.00013821,2]
[405362054,1771090203380,182.21711214,0.00029393,120]
[405362055,1771090203499,200.27742253,0.00029393,120]
[405362056,1771090205512,500.0,0.00013699,2]
[405362057,1771090205570,1001.7637022,0.00014247,2]
[405362058,1771090228120,168.0,0.00030129,120]
[405362076,1771090231929,-1078.06174088,0.00016118,2]
[405362077,1771090231939,-360.96339,0.00016281,2]
[405362079,1771090231948,-341.476834,0.00016336,2]
[405362080,1771090231958,-150.0,0.00016528,2]
[405362081,1771090231967,-513.23100606,0.00016969,2]
[405362101,1771090238054,-4243.61988294,0.00016969,2]
[405362102,1771090238065,-911.86492575,0.00016998,2]
[405362107,1771090240068,-288.13507425,0.00016998,2]
[405362108,1771090240077,-128.69364174,0.00016999,2]
[405362110,1771090240121,-171.30635826,0.00016999,2]
[405362111,1771090240131,-300.0,0.00016999,2]
[405362112,1771090240141,-57.06260985,0.00016999,2]
[405362138,1771090244713,-242.93739015,0.00016999,2]
[405362139,1771090244722,-300.0,0.00016999,2]
[405362140,1771090244731,-300.0,0.00016999,2]
[405362141,1771090244740,-500.0,0.00016999,2]
[405362142,1771090244749,-500.0,0.00016999,2]
[405362143,1771090244758,-500.0,0.00016999,2]
[405362144,1771090244767,-500.0,0.00016999,2]
[405362145,1771090244776,-516.12947213,0.00016999,2]
[405362146,1771090244785,-500.0,0.00016999,2]
[405362147,1771090244794,-469.01208889,0.00016999,2]
[405362148,1771090244803,-500.0,0.00016999,2]
[405362149,1771090244812,-500.0,0.00016999,2]
[405362150,1771090244822,-500.0,0.00016999,2]
[405362151,1771090244831,-500.0,0.00016999,2]
[405362152,1771090244840,-363.08488335,0.00016999,2]
[405362153,1771090244851,-136.91511665,0.00016999,2]
[405362154,1771090244860,-333.4320806,0.00016999,2]
[405362155,1771090244871,-166.5679194,0.00016999,2]
[405362156,1771090244881,-500.0,0.00016999,2]
[405362157,1771090244890,-500.0,0.00016999,2]
[405362158,1771090244899,-500.0,0.00016999,2]
[405362159,1771090244908,-495.85946412,0.00016999,2]
[405362160,1771090244918,-535.53436561,0.00016999,2]
[405362161,1771090244931,-336.3637496,0.00016999,2]
[405362162,1771090244941,-500.0,0.00016999,2]
[405362163,1771090244950,-500.0,0.00016999,2]
[405362164,1771090244960,-500.0,0.00016999,2]
[405362165,1771090244970,-500.0,0.00016999,2]
[405362166,1771090244979,-500.0,0.00016999,2]
[405362167,1771090244988,-500.0,0.00016999,2]
[405362168,1771090244997,-500.0,0.00016999,2]
[405362169,1771090245007,-500.0,0.00016999,2]
[405362170,1771090245017,-500.0,0.00016999,2]
[405362171,1771090245026,-572.59417969,0.00016999,2]
[405362172,1771090245036,-500.0,0.00016999,2]
[405362173,1771090245045,-500.0,0.00016999,2]
[405362174,1771090245055,-500.0,0.00016999,2]
[405362175,1771090245064,-500.0,0.00016999,2]
[405362176,1771090245075,-500.0,0.00016999,2]
[405362177,1771090245085,-500.0,0.00016999,2]
[405362178,1771090245094,-500.0,0.00016999,2]
[405362179,1771090245104,-500.0,0.00016999,2]
[405362180,1771090245113,-500.0,0.00016999,2]
[405362181,1771090245123,-500.0,0.00016999,2]
[405362182,1771090245133,-500.0,0.00016999,2]
[405362183,1771090245142,-282.83003,0.00016999,2]
[405362184,1771090245152,-500.0,0.00016999,2]
[405362185,1771090245161,-500.0,0.00016999,2]
[405362186,1771090245171,-500.0,0.00016999,2]
[405362187,1771090245180,-500.0,0.00016999,2]
[405362188,1771090245189,-500.0,0.00016999,2]
[405362189,1771090245198,-500.0,0.00016999,2]
[405362190,1771090245208,-3558.68928458,0.00017,2]
[405362198,1771090301103,-819.79012359,0.00016999,2]
[405362201,1771090374159,170.604504,0.00011884,2]
[405362203,1771090479257,93417.00672716,0.0003013,120]
[405362213,1771090629026,239.54716756,0.00013273,2]
[405362214,1771090690001,500.0,0.00013699,2]
[405362215,1771090690282,500.0,0.00013699,2]
[405362216,1771090690332,654.60959392,0.00014247,2]
[405362231,1771090810245,300.0,0.00013673,2]
[405362232,1771090869958,500.00498246,0.00013699,2]
[405362233,1771090931704,301.56130493,0.00013699,2]
[405362234,1771090931732,500.0,0.00013699,2]
[405362235,1771090933388,500.0,0.00013699,2]
[405362236,1771090936797,1000.0,0.00014247,2]
[405362237,1771090936869,500.0,0.00013699,2]
[405362238,1771090944903,500.0,0.00013699,2]
[405362239,1771090944939,400.32003782,0.00014247,2]
[405362240,1771091059947,500.0,0.00013699,2]
[405362241,1771091168846,500.0,0.00013699,2]
[405362242,1771091344107,500.0,0.00013273,2]
[405362243,1771091344168,406.45433877,0.00013821,2]
[405362279,1771091432179,-3504.3062265,0.0001695,2]
[405362282,1771091432191,-306.70174738,0.0001695,2]
[405362343,1771091438153,-1890.47785642,0.0001695,2]
[405362345,1771091438163,-150.0,0.00016956,2]
[405362347,1771091438174,-300.0,0.00016996,2]
[405362349,1771091438184,-300.0,0.00016996,2]
[405362351,1771091438195,-300.0,0.00016996,2]
[405362353,1771091438205,-1200.0,0.00016996,2]
[405362355,1771091438215,-455.38388861,0.00016999,2]
[405362357,1771091438225,-497.3065607,0.00016999,2]
[405362359,1771091438235,-3152.8661511,0.00016999,2]
[405362361,1771091438244,-500.0,0.00016999,2]
[405362363,1771091438254,-500.0,0.00016999,2]
[405362365,1771091438264,-500.0,0.00016999,2]
[405362367,1771091438274,-438.0379047,0.00016999,2]
[405362369,1771091438283,-285.84379774,0.00016999,2]
[405362371,1771091438293,-3356.1957203,0.00017,2]
[405362373,1771091438304,-321.3239246,0.00017831,2]
[405362375,1771091438313,-500.0,0.00017831,2]
[405362377,1771091438323,-577.1292709,0.00017831,2]
[405362379,1771091438332,-500.0,0.00017831,2]
[405362381,1771091438343,-500.0,0.00017831,2]
[405362383,1771091438354,-417.12,0.0001799,3]
[405362384,1771091438364,-3121.52891882,0.00017999,2]
[405362385,1771091438374,-19452.9419476,0.00018,2]
[405362386,1771091438386,-3096.06153313,0.00018,2]
[405362645,1771091445650,-4770.81809725,0.00018,2]
[405362646,1771091445662,-400.0,0.00018,2]
[405362668,1771091446237,-92264.00385357,0.00018,2]
[405362671,1771091446345,-4003.17328358,0.00018,2]
[405362690,1771091644002,500.0,0.00013273,2]
[405362695,1771091807039,-1850.56902093,0.00017354,2]
[405362696,1771091819156,-169.02588148,0.00017545,2]
[405362697,1771091819183,-150.0,0.00017722,2]
[405362698,1771091819209,-5280.09249115,0.000179,2]
[405362699,1771091819235,-480.68,0.0001799,3]
[405362700,1771091819260,-300.0,0.00017999,2]
[405362701,1771091819285,-1200.0,0.00017999,2]
[405362702,1771091819310,-300.0,0.00017999,2]
[405362703,1771091819335,-17120.20162737,0.00018,2]
[405362704,1771091820436,-25000.0,0.00018,2]
[405362705,1771091821102,-25000.0,0.00018,2]
[405362706,1771091822384,-300.0,0.00017999,2]
[405362707,1771091822410,-24700.0,0.00018,2]
[405362708,1771091822790,-203.0,0.00017999,2]
[405362709,1771091822816,-24797.0,0.00018,2]
[405362710,1771091823557,-25000.0,0.00018,2]
[405362711,1771091824334,-25000.0,0.00018,2]
[405362712,1771091825685,-25000.0,0.00018,2]
[405362713,1771091827285,-25000.0,0.00018,2]
[405362714,1771091835511,-20000.0,0.00018,2]
[405362715,1771091859366,5000.0,0.000175,2]
[405362716,1771091868301,5000.0,0.000175,2]
[405362717,1771091882859,5000.0,0.000175,2]
[405362718,1771091884377,500.0,0.00013273,2]
[405362719,1771091884427,1000.0,0.00013821,2]
[405362720,1771091884483,845.20676096,0.00014368,2]
[405362721,1771091884872,500.0,0.00013273,2]
[405362722,1771091884905,2500.0,0.00015464,2]
[405362723,1771091884940,2000.0,0.00014916,2]
[405362724,1771091884976,804.22421811,0.00017108,2]
[405362725,1771091885006,1500.0,0.00014368,2]
[405362726,1771091885036,3500.0,0.0001656,2]
[405362727,1771091885065,1000.0,0.00013821,2]
[405362728,1771091885109,3000.0,0.00016012,2]
[405362729,1771091887203,500.0,0.00013273,2]
[405362730,1771091887253,1000.0,0.00013821,2]
[405362731,1771091887311,1500.0,0.00014368,2]
[405362732,1771091887367,2000.0,0.00014916,2]
[405362733,1771091887424,2500.0,0.00015464,2]
[405362734,1771091887480,1168.26667421,0.00016012,2]
[405362735,1771091888601,300.0,0.00013673,2]
[405362736,1771091888633,855.52091666,0.00015864,2]
[405362737,1771091888663,500.0,0.00013699,2]
[405362738,1771091888693,503.29938304,0.00014247,2]
[405362739,1771091888724,900.0,0.00014768,2]
[405362740,1771091888755,1200.0,0.00015316,2]
[405362741,1771091888788,600.0,0.00014221,2]
[405362742,1771091889062,1000.0,0.00014247,2]
[405362743,1771091889095,160.33998127,0.00013699,2]
[405362744,1771091889125,500.0,0.00013699,2]
[405362745,1771091889155,500.0,0.00013273,2]
[405362746,1771091889183,312.57304482,0.00014795,2]
[405362747,1771091889208,1187.42695518,0.00014795,2]
[405362748,1771091889241,2000.0,0.00015342,2]
[405362749,1771091889284,2500.0,0.0001589,2]
[405362750,1771091889336,292.52981682,0.00016438,2]
[405362751,1771091889391,501.4311965,0.00013699,2]
[405362752,1771091890708,500.93754052,0.00013273,2]
[405362753,1771091891656,500.0,0.00013699,2]
[405362754,1771091891714,1000.0,0.00014247,2]
[405362755,1771091891772,501.07051364,0.00014795,2]
[405362756,1771091892037,500.0,0.00013699,2]
[405362757,1771091892091,1007.53368766,0.00014247,2]
[405362758,1771091892212,503.48490519,0.00013699,2]
[405362759,1771091892924,500.0,0.00013699,2]
[405362760,1771091892975,1000.0,0.00014247,2]
[405362761,1771091893035,502.49662358,0.00014795,2]
[405362762,1771091893420,482.46412445,0.00013273,2]
[405362763,1771091895296,336.60853574,0.00013273,2]
[405362764,1771091896716,545.802568,0.00013699,2]
[405362765,1771091897060,578.88185038,0.00013699,2]
[405362766,1771091897321,500.0,0.00013699,2]
[405362767,1771091897384,1000.0,0.00014247,2]
[405362768,1771091897549,1202.32715655,0.00014795,2]
[405362769,1771091912317,161.0,8.3e-07,2]
[405362770,1771091913294,161.0,8.3e-07,2]
[405362771,1771091914340,161.0,8.3e-07,2]
[405362772,1771091915365,161.0,8.3e-07,2]
[405362773,1771091916398,161.0,8.3e-07,2]
[405362774,1771091917516,161.0,8.3e-07,2]
[405362775,1771091918556,161.0,8.3e-07,2]
[405362776,1771091919741,161.0,8.3e-07,2]
[405362777,1771091920770,161.0,8.3e-07,2]
[405362778,1771091921822,161.0,8.3e-07,2]
[405362779,1771091933426,5747.00452579,0.000165,2]
[405362780,1771091943734,500.0,0.00013699,2]
[405362781,1771091943771,504.14408874,0.00014247,2]
[405362782,1771091944141,206.26919926,0.00013821,2]
[405362783,1771091944194,500.0,0.00013273,2]
[405362784,1771091945143,500.0,0.00013273,2]
[405362785,1771091945193,217.40865874,0.00013821,2]
[405362786,1771091946655,500.0,0.00013699,2]
[405362787,1771091946706,500.0,0.00013273,2]
[405362788,1771091946734,1000.0,0.00014247,2]
[405362789,1771091946767,1000.0,0.00013821,2]
[405362790,1771091946801,825.6354297,0.00014795,2]
[405362791,1771091946833,1500.0,0.00014368,2]
[405362792,1771091946863,2000.0,0.00014916,2]
[405362793,1771091946929,2500.0,0.00015464,2]
[405362794,1771091947991,500.55644104,0.00013273,2]
[405362795,1771091948068,526.65494683,0.00013699,2]
[405362796,1771091948096,500.0,0.00013273,2]
[405362797,1771091949751,500.58253669,0.00013273,2]
[405362798,1771091951065,500.0,0.00013699,2]
[405362799,1771091951098,2500.0,0.0001589,2]
[405362800,1771091951170,1000.0,0.00014247,2]
[405362801,1771091951225,1500.0,0.00014795,2]
[405362802,1771091951282,2000.0,0.00015342,2]
[405362803,1771091951472,500.78529919,0.00013699,2]
[405362804,1771091951953,396.90119587,0.00013273,2]
[405362805,1771091951990,500.0,0.00013273,2]
[405362806,1771091952267,503.08102239,0.00013699,2]
[405362807,1771091952775,500.90548219,0.00013699,2]
[405362808,1771091953752,500.68304287,0.00013699,2]
[405362809,1771091954741,161.46399014,0.00013699,2]
[405362810,1771091955528,154.92866635,0.00013699,2]
[405362811,1771091955553,346.55023768,0.00013699,2]
[405362812,1771091956164,500.0,0.00013699,2]
[405362813,1771091956212,238.46971449,0.00014247,2]
[405362814,1771091956384,411.30349008,0.00013699,2]
[405362815,1771091956760,167.11366125,0.00013699,2]
[405362816,1771091969801,3398.83547421,0.000156,2]
[405362817,1771092003257,4724.19023175,0.000145,10]
[405362818,1771092065487,500.0,0.00013699,2]
[405362819,1771092065524,1000.0,0.00014247,2]
[405362820,1771092065574,214.61377282,0.00014795,2]
[405362821,1771092065616,500.0,0.00013699,2]